Cogmind - Beta 15 @@@ ROGUE MODE // 2025.09.17 @ 11:03:52 Player: YA-B01 Result: Destroyed by QN-TZH(R) with Subdweller Machine Gun Performance ------------- Evolutions (0) 0 Regions Visited (2) 400 Robots Destroyed (25) 125 Value Destroyed (582) 582 Prototype IDs (11) 220 Alien Tech Used (0) 0 Bonus (0) 0 TOTAL SCORE: 1327 Bonus ------- None Cogmind --------- Core Integrity 0/250 Matter 295/300 Energy 200/200 System Corruption 0% Temperature Cool (0) Movement Rolling (120) Ox1 Location -10/Subcaves Parts ------- > --- POWER (1) -------- Subdweller Power Source > --- PROPULSION (2) --- Subdweller Monowheel > --- UTILITY (2) ------ Scrap Shield > --- WEAPON (2) ------- Subdweller Beam Cannon Subdweller Machine Gun > --- INVENTORY (5) ---- Subdweller Monowheel Subdweller Optics Subdweller Optics Subdweller Laser Subdweller Beam Cannon Peak State ------------ > --- POWER ------------ Subdweller Power Source > --- PROPULSION ------- Subdweller Monowheel Subdweller Monowheel > --- UTILITY ---------- Scrap Shield > --- WEAPON ----------- Subdweller Beam Cannon Subdweller Machine Gun > --- INVENTORY -------- Subdweller Monowheel Subdweller Optics Subdweller Optics Subdweller Laser Subdweller Beam Cannon [Rating: 15] Favorites ----------- Power Subdweller Power Source Engine Subdweller Power Source Propulsion Light Treads Treads Light Treads Wheel Subdweller Monowheel Utility Small Storage Unit Device Improved Terrain Scanner Storage Small Storage Unit Protection Scrap Shield Weapon Subdweller Machine Gun Energy Gun Medium Laser Energy Cannon Subdweller Beam Cannon Ballistic Gun Subdweller Machine Gun Build | -11 -10 -10 ------- Run | Yrd Mat Sub Slots Evolved . | . . . Power . | . . . Propulsion . | . . . Utility . | . . . Weapon . | . . . Parts Attached 29 | 6 1 22 Power 7 | 1 . 6 Engine 7 | 1 . 6 Core . | . . . Reactor . | . . . Propulsion 7 | 2 . 5 Treads 3 | 2 . 1 Leg . | . . . Wheel 4 | . . 4 Hover . | . . . Flight . | . . . Utility 4 | 1 1 2 Device 2 | . 1 1 Storage 1 | 1 . . Processor . | . . . Hackware . | . . . Protection 1 | . . 1 Artifact . | . . . Weapon 11 | 2 . 9 Energy Gun 4 | 1 . 3 Energy Cannon 2 | . . 2 Ballistic Gun 5 | 1 . 4 Ballistic Cannon . | . . . Launcher . | . . . Special Weapon . | . . . Impact Weapon . | . . . Slashing Weapon . | . . . Piercing Weapon . | . . . Special Melee Weapon . | . . . Unidentified Prototypes . | . . . Parts Lost 6 | . . 6 Power 1 | . . 1 Propulsion 4 | . . 4 Utility . | . . . Weapon 1 | . . 1 Highest Loss Streak 3 | . . 3 To Critical Strikes . | . . . Average Backups 6 | 3 6 6 Power . | . 1 . Propulsion 1 | 1 2 1 Utility 2 | . 1 2 Weapon 1 | . 1 1 Tool/Special . | . . . Unused Backups 10 | . . 10 Power . | . . . Propulsion 3 | . . 3 Utility 5 | . . 5 Weapon 1 | . . 1 Tool/Special 1 | . . 1 Average Slot Usage (%) 97 | . 100 97 Engine 13 | . 14 13 Treads 22 | . 28 22 Wheel 5 | . . 5 Device 12 | . 14 11 Storage 12 | . 14 11 Protection 1 | . . 2 Energy Gun 12 | . 14 12 Energy Cannon 1 | . . 1 Ballistic Gun 14 | . 14 14 Peak Build Rating 15 | 6 8 15 Average Rating 12 | 5 7 12 On Entrance 4 | . 6 8 Naked Turns . | . . . Heaviest Build 35 | 14 15 35 Greatest Support 40 | 40 40 40 Greatest Overweight (x) 5 | . . 5 Average Overweight (x) . | . . . Largest Inventory Capacity 8 | 8 8 8 Average Capacity 7 | 7 8 7 Most Carried 8 | 6 7 8 Average Carried 7 | 3 6 7 Final Capacity 8 | 8 8 5 Final Carried 7 | 6 7 5 Class Distribution -------------------- 73% | Mutant 13% | Subdweller-Mutant 12% | Derelict-Mutant Dominant Class ---------------- Mutant | -10/Materials Mutant | -10/Subcaves Resources | -11 -10 -10 ----------- Run | Yrd Mat Sub Matter Collected 712 | 293 13 406 Remotely . | . . . Salvage Created 726 | 156 14 556 Parts 53 | 12 3 38 Haulers Intercepted . | . . . Recyclers Shooed . | . . . Parts Field Recycled . | . . . Retrieved Matter . | . . . Parts Self-Destructed 13 | . . 13 Prevented . | . . . Kills | -11 -10 -10 ------- Run | Yrd Mat Sub Combat Hostiles Destroyed 19 | . . 19 Guns 16 | . . 16 Cannons 2 | . . 2 Classes Destroyed 7 | 2 1 4 Tunneler 4 | 4 . . Recycler 1 | 1 . . Operator 1 | . 1 . Swarmer 8 | . . 8 Grunt 1 | . . 1 Sentry 1 | . . 1 Subdweller 9 | . . 9 Best Kill Streak 5 | 5 1 4 Combat Bots Only 4 | . . 4 Max Kills in Single Turn 2 | 2 1 1 Gunslinging . | . . . Exploded . | . . . Melee . | . . . Uniques/NPCs Destroyed . | . . . Combat | -11 -10 -10 -------- Run | Yrd Mat Sub Hostile Shots Fired 128 | . . 128 Missed 34 | . . 34 Hits 94 | . . 94 Projectile 94 | . . 94 Critical Strikes 2 | . . 2 Damage Taken 1514 | . . 1514 Core 258 | . . 258 Absorbed by Shields . | . . . Core Remaining (%) 100 | 100 . . Volleys Fired 148 | 11 1 136 Largest 2 | 2 2 2 Hottest 110 | 70 70 110 Shots Fired 225 | 22 2 201 Gun 182 | 22 2 158 Cannon 43 | . . 43 Launcher . | . . . Special . | . . . Kinetic 86 | 11 1 74 Thermal 139 | 11 1 127 Explosive . | . . . Electromagnetic . | . . . Robot Hit Streak 36 | 5 7 36 Robot Miss Streak 4 | 2 . 4 Penetration Max . | . . . Secondary Targets 2 | . . 2 Max Gunslinging Chain 1 | . . 1 Shots Hit Robots 137 | 15 2 120 Core Hits 40 | 6 4 30 Critical Kills 1 | . . 1 Critical Parts Destroyed . | . . . Critical Strikes 7 | . . 7 Burn 5 | . . 5 Destroy 2 | . . 2 Melee Attacks . | . . . Impact . | . . . Slashing . | . . . Piercing . | . . . Sneak Attacks . | . . . Combat Hostiles . | . . . Follow-up Attacks . | . . . Damage Inflicted 2246 | 201 29 2016 Guns 1781 | 201 26 1554 Cannons 462 | . . 462 Explosions . | . . . Melee . | . . . Ramming 3 | . 3 . Kinetic 925 | 113 13 799 Thermal 1318 | 88 13 1217 Explosive . | . . . Electromagnetic . | . . . Impact . | . . . Slashing . | . . . Piercing . | . . . Highest Corruption . | . . . Average Corruption . | . . . Corruption Purged . | . . . Corruption Blocked . | . . . Overload Shots . | . . . Overflow Damage . | . . . Projectiles . | . . . Explosions . | . . . Melee . | . . . Knockbacks . | . . . Impact . | . . . Kinetic . | . . . Secondary . | . . . Self-Inflicted Damage . | . . . Shots . | . . . Rammed 2 | . 2 . Targets Rammed 2 | . 2 . Kicked . | . . . Crushed . | . . . Highest Temperature 54 | 54 9 54 Average Temperature 22 | 25 6 18 Received Heat Transfer 297 | . . 297 Siege Activations . | . . . Martial Activations . | . . . Shielding Activations . | . . . Robots Disrupted . | . . . Combat Hostiles . | . . . Robots Corrupted . | . . . Combat Hostiles . | . . . Parts Fried . | . . . Impact Corruptions . | . . . Robots Melted 1 | . . 1 Combat Hostiles 1 | . . 1 Parts Melted 1 | . . 1 Heat Transferred 3442 | 259 37 3146 Parts Sabotaged . | . . . Parts Stolen . | . . . Parts Stripped . | . . . Power Chain Reactions . | . . . Alert | -11 -10 -10 ------- Run | Yrd Mat Sub Maximum Alert Level . | . . . Low Security (%) 100 | 100 100 . Level 1 . | . . . Level 2 . | . . . Level 3 . | . . . Level 4 . | . . . Level 5 . | . . . High Security . | . . . Max Security . | . . . Peak Influence 15 | 15 5 . Initial . | . . . Average 1 | 2 . . Influence Increases 325 | 25 5 295 Destroy 0b10 Robot/C 200 | . . 200 Destroy 0b10 Robot/NC 30 | 25 5 . Destroy Leader 20 | . . 20 Lose Combat Pursuer 75 | . . 75 Influence Decreases 290 | 25 5 260 Time Decay 230 | 25 5 200 Lost Part 60 | . . 60 Squads Dispatched 1 | . 1 . Investigation . | . . . Extermination . | . . . Reinforcement 1 | . 1 . Assault . | . . . Garrison . | . . . Intercept . | . . . Searches Triggered . | . . . Construction Impeded . | . . . Haulers Reinforced . | . . . Active Scanning Responses . | . . . Cargo Convoy Interrupts . | . . . Stealth | -11 -10 -10 --------- Run | Yrd Mat Sub Distress Signals . | . . . Communications Jammed . | . . . Distress Signals . | . . . Times Spotted 24 | . 1 23 Peak Tracking Total 3 | . 1 3 Tactical Retreats 3 | . . 3 Traps | -11 -10 -10 ------- Run | Yrd Mat Sub Traps Triggered 1 | . . 1 Indirectly . | . . . Trap Hack Attempts . | . . . Triggered . | . . . Disarmed . | . . . Reprogrammed . | . . . Reused . | . . . Traps Extracted . | . . . Installed . | . . . Triggered . | . . . Machines | -11 -10 -10 ---------- Run | Yrd Mat Sub Machines Disabled . | . . . Max in Single Turn . | . . . Machines Repaired . | . . . Machines Dismantled . | . . . Machines Sabotaged . | . . . Overloaded Fab Kills . | . . . Hacking | -11 -10 -10 --------- Run | Yrd Mat Sub Machines Accessed 1 | . . 1 Terminals . | . . . Fabricators . | . . . Repair Stations . | . . . Recycling Units . | . . . Scanalyzers . | . . . Garrison Access . | . . . Total Hacks 1 | . . 1 Successful 1 | . . 1 Failed . | . . . Catastrophic . | . . . Database Lockouts . | . . . Manual . | . . . Terminals . | . . . Fabricators . | . . . Repair Stations . | . . . Recycling Units . | . . . Scanalyzers . | . . . Garrison Access . | . . . Terminal Hacks 1 | . . 1 Proto ID Catalog 1 | . . 1 Fabricator Hacks . | . . . Repair Station Hacks . | . . . Recycling Unit Hacks . | . . . Scanalyzer . | . . . Garrison Access Hacks . | . . . Unauthorized Hacks . | . . . Terminals . | . . . Fabricators . | . . . Repair Stations . | . . . Recycling Units . | . . . Scanalyzers . | . . . Garrison Access . | . . . Data Cores Recovered . | . . . Used . | . . . Hacking Detections . | . . . Full Trace Events . | . . . Feedback Events . | . . . Feedback Blocked . | . . . Robot Schematics Acquired . | . . . Robots Built . | . . . Authchips . | . . . Time . | . . . Total Robot Build Rating . | . . . Part Schematics Acquired . | . . . Parts Built . | . . . Authchips . | . . . Time . | . . . Total Part Build Rating . | . . . Parts Repaired . | . . . Time . | . . . Parts Recycled . | . . . Recycled Matter . | . . . Retrieved Matter . | . . . Retrieved Components . | . . . Parts Scanalyzed . | . . . Part Schematics Acquired . | . . . Parts Damaged . | . . . Bothacking | -11 -10 -10 ------------ Run | Yrd Mat Sub Used RIF Installer . | . . . Robots Hacked . | . . . Non-combat . | . . . Combat . | . . . Robot Hacks Applied . | . . . Relay Couplers Released . | . . . Fabnet Peak Effective % . | . . . Robots Rewired . | . . . Allies Hacked . | . . . Hacks Repelled . | . . . Allies | -11 -10 -10 -------- Run | Yrd Mat Sub Total Allies . | . . . Largest Group . | . . . Highest-Rated Group . | . . . Highest-Rated Ally . | . . . Total Orders . | . . . Ally Attacks . | . . . Total Damage . | . . . Kills . | . . . Allies Corrupted . | . . . Allies Melted . | . . . Intel | -11 -10 -10 ------- Run | Yrd Mat Sub Active Infowar (turns) 3643 | . 124 3519 Terrain 2886 | . . 2886 Seismic 757 | . 124 633 Robot Analysis Total . | . . . Derelict Logs Recovered 2 | . . 2 Drone Launches . | . . . Drone Recoveries . | . . . Exploration | -11 -10 -10 ------------- Run | Yrd Mat Sub Turns Passed 4372 | 131 124 4117 Spaces Moved 2237 | 55 70 2112 Core 8 | 7 . 1 Treads 1669 | 48 70 1551 Legs . | . . . Wheels 560 | . . 560 Hover . | . . . Flight . | . . . Fastest Speed 50 | 50 160 110 Average Speed 147 | 146 160 146 Slowest Speed 300 | 160 160 300 Overloaded Moves . | . . . Propulsion Burnouts . | . . . Robots Hopped . | . . . Potential Cave-ins . | . . . Cave-ins Triggered . | . . . Exploration Rate (%) 29 | 4 16 69 Regions Visited 2 Branch Regions 1 Pre-discovered Areas 1 | . . 1 Known Exits Taken . | . . . Unknown Exits Taken 2 | 1 1 . Scrap Searched 10 | . . 10 Spaces Dug 4 | . . 4 Terrain Destroyed 15 | . . 15 Melee . | . . . Projectile 15 | . . 15 AOE . | . . . Terrain Rammed . | . . . Walls Destroyed . | . . . Machines Disabled . | . . . Actions | -11 -10 -10 --------- Run | Yrd Mat Sub Total 3092 | 81 79 2932 Wait 605 | 4 4 597 Move 2235 | 54 69 2112 Hop . | . . . Pick Up 30 | 6 2 22 Fast Attach 13 | 6 . 7 Attach 7 | . 1 6 Detach 2 | . . 2 Swap 13 | . . 13 Drop 31 | . . 31 Fire 148 | 11 1 136 Melee . | . . . Ram . | . . . Kick . | . . . Crush 2 | . 2 . Escape Stasis . | . . . Rewire . | . . . Trap . | . . . Miscellaneous 6 | . . 6 Route ------- -11/Scrapyard -10/Materials -10/Subcaves (discovered 1 exit: [*Mat]) History --------- Turn | Location | Event 5 | -11/Scrapyard | Discovered new exit (range 15) 132 | -11/Scrapyard | Entered Materials 224 | -10/Materials | Discovered new exit (range 9) 256 | -10/Materials | Entered Subcaves 257 | -10/Subcaves | Approached by a straggling Scientist 305 | -10/Subcaves | Build established: Mutant 312 | -10/Subcaves | Discovered new exit (range 9) 735 | -10/Subcaves | Shifting Twisted Machinery released Sub. Monowheel 737 | -10/Subcaves | Shifting Twisted Machinery released Battle Rifle 773 | -10/Subcaves | Shifting Twisted Machinery released Scrap Shield 1212 | -10/Subcaves | Shifting Twisted Machinery released Sub. Beam Cannon 1780 | -10/Subcaves | Learned Materials trap positions 3147 | -10/Subcaves | Visited 4L-MR0's lab 3239 | -10/Subcaves | Build established: Derelict-Mutant 3602 | -10/Subcaves | Core integrity fell below 50% 3650 | -10/Subcaves | Core integrity fell below 20% 3689 | -10/Subcaves | Lost 3 parts (1p1n1w) 3821 | -10/Subcaves | A swath of the cavern ceiling suddenly collapsed 3984 | -10/Subcaves | Ambushed by Subdwellers from Twisted Machinery 4060 | -10/Subcaves | Build established: Subdweller-Mutant 4357 | -10/Subcaves | Ambushed by Subdweller buried in earth 4373 | -10/Subcaves | Destroyed by QN-TZH(R) with Subdweller Machine Gun Last Messages --------------- 04084_ Scrap Shield Fragment affixed to Scrap Shield (+30). 04086_ Dropped Broken Sub. Beam Cannon. 04086_ Acquired Sub. Beam Cannon. 04087_ Dropped Med. Laser. 04089_ Acquired Broken Sub. Beam Cannon. 04091_ Acquired 10 matter. 04097_ Dropped Sub. Power Source. 04117_ Acquired 10 matter. 04155_ Destroyed Scrap Shield. 04155_ RF-WD3(R) destroyed. 04158_ Dropped Broken Sub. Laser. 04158_ Acquired Sub. Laser. 04161_ Scrap Shield Fragment affixed to Scrap Shield (+46). 04162_ Acquired 14 matter. 04164_ Scrap Shield Fragment affixed to Scrap Shield (+33). 04358_ QN-TZH(R): "ARGHSUB!" 04363_ Critical hit (Destroy). 04367_ Sub. Monowheel destroyed. Map ----- +----------------------------------------------------+ | ?????????????????????????????????????????????????? | | ?????????????????????????????????????????????????? | | ?????????????????????????????????????????????????? | | ?????????????????????????????????????????????????? | | ?????????????????????????????????????????????????? | | ?????????????????????????????????????????????????? | | ?????????????????????????????????????????????????? | | ?????????????????????????????????????????????????? | | ?????????????????????????????????????????????????? | | ?????????????????????###?????????????????????????? | | ??????????????????#### ??????????########??????? | | ??????????????????"""" ########### # # #??????? | | ??????????????????"""" "" #" ## ##?????? | | ???????????????????????# "% % #?????? | | ???????????????????????## " " # ##?????? | | ????????????????????????##"# ### ## ###????? | | ?????????????????????????### #?## ## #????# | | ??????????????????????????## #??## ### #????# | | ??????????????????????????#" ##?## ### % ##??## | | ??????????????????????????#" #?# ### #"#""#" | | ??????????????????????????## ##?# ##% """### | | ???????????????????????????# #?## #"###?# | | ???????????????????????##### ##?# ####???# | | ???????????????????????# % # ##?## ### %##??????# | | ????????????????????##### ##?##### ##????### | | ????????????????????# # @ ###### #???## | | ?????????????????????# R ### % % ##??## | | ?????????????????????######?####& #???# | | ???????????????????????????????## & #???# | | ????????????????????????????????# % ##??## | | ??????????????????????????????# # #??## | | ??????????????????????????????# ## #??# | | ?????????????????????????????# ### %##?## | | ????????????????????????????# ## #?## | | ??????????????????##????????# ### ### | | ??????????????????# #???????## #??# | | ???????????????????# #???????###???# | | ????????????????????# #???????????## | | ?????????????????????# #???????#### % % | | ??????????????????????# #?????## | | ??#??????#?#???????????# #???## ### | | ?#??#???????????????????# #?## #### ## | | ???????????#?????#???????#"## #??##### | | ?????##????????#??????#???# #??????# | | ????###?##????????????????## #???????# | | ???##???????????#?#????????# ## #???????# | | ???????#??#?#??#?#?#??#??#?# #### #?#?????## | | ?#???#????????????????##?#?## ##??### ##?????#?## | | ??##?#?????##?#??#??????#???#####????###??????#??? | | ???#?????????#????#??#????#?#????#?#???###??#????? | +----------------------------------------------------+ Best States ------------- Heat Dissipation 25 Energy Generation 15 Energy Capacity 250 Matter Stores 300 Matter Capacity 300 Sight Range 16 Terrain Scan Range 16 Terrain Scan Density 10 Armor Coverage 800 Evasion (%) 40 Recoil Reduction 2 Item Schematics ----------------- None Robot Schematics ------------------ None Fabricated ------------ Nothing Repaired ---------- Nothing Alien Tech Used ----------------- None Achievements -------------- None Challenges ------------ None Game ------ Seed AlloyThiefDissipator Manual? 0 Play Time 00:21:47 Cumulative 270.2 hours Start 2025.09.16 @ 15:37:03 End 2025.09.17 @ 11:03:52 Sessions 5 Manual Loads 0 Difficulty Rogue Special Mode None Game No. 144 Rogue 141 Adventurer 3 Explorer 0 Win Type - Total 7 Types 6/0/1/0/0/0/0/0/0/0 Lore% 74 Gallery% 71 Achievement% 62 Wizard Run 0 Options --------- Layout 1 ASCII 0 Keyboard 1 Movement Vi Keybinds 0 Fullscreen 1 Font 28/SmallcapsGlow Map View 50x43 Zoom Use 0% Tactical HUD 1 Map Filters NONE Filters NONE Steam X RUN: 8dacd3a2-cd8a-4a40-a8d3-bd8bc18bd3d5